[Event "22nd Ruzomberok Open 2019"]
[Site "Ruzomberok"]
[Date "2019.07.06"]
[Round "8.30"]
[White "Kunzo, Slavomir"]
[Black "Profant, Jan"]
[Result "0-1"]
[ECO "B73"]
[WhiteElo "1593"]
[BlackElo "1879"]
[Annotator "NA"]
[PlyCount "76"]
[EventDate "2019.06.29"]
[EventType "swiss"]
[EventCountry "SVK"]
[SourceTitle "playchess.com"]
[Source "ChessBase"]
[SourceQuality "1"]
[TimeControl "40/5400+30:1800+30"]

1. e4 {[%emt 0:04:57]} c5 {[%emt 0:00:00]} 2. Nf3 {[%emt 0:00:13]} g6 {[%emt 0:00:00]} 3. d4 {[%emt 0:01:49]} cxd4 {[%emt 0:00:00]} 4. Nxd4 {[%emt 0:01:02]} Nc6 {[%emt 0:00:03]} 5. Be3 {[%emt 0:00:37]} Bg7 {[%emt 0:00:08]} 6. Nc3 {[%emt 0:01:19]} Nf6 {[%emt 0:00:09]} 7. Be2 {[%emt 0:01:34]} O-O {[%emt 0:00:23]} 8. O-O {[%emt 0:00:33]} d6 {[%emt 0:00:35]} 9. Qd2 {[%emt 0:03:39]} Nxd4 {[%emt 0:00:46]} 10. Bxd4 {[%emt 0:00:42]} Bd7 {[%emt 0:00:09]} 11. f3 {[%emt 0:01:42]} Qa5 {[%emt 0:01:15]} 12. Rfb1 {[%emt 0:04:33]} Rfc8 {[%emt 0:00:58]} 13. b4 {[%emt 0:01:07]} Qc7 {[%emt 0:00:31]} 14. f4 {[%emt 0:10:33]} e5 {[%emt 0:00:42]} 15. fxe5 {[%emt 0:01:47]} dxe5 {[%emt 0:00:02]} 16. Bc5 {[%emt 0:02:48]} b6 {[%emt 0:00:02]} 17. Nd5 {[%emt 0:03:59]} Nxd5 {[%emt 0:00:23]} 18. Qxd5 {[%emt 0:00:52]} bxc5 {[%emt 0:00:08]} 19. b5 {[%emt 0:00:40]} Be6 {[%emt 0:00:37]} 20. Qd2 {[%emt 0:01:11]} Rd8 {[%emt 0:00:11]} 21. Qe3 {[%emt 0:00:47]} f5 {[%emt 0:00:30]} 22. Bf3 {[%emt 0:00:59]} f4 {[%emt 0:00:58]} 23. Qe2 {[%emt 0:00:51]} c4 {[%emt 0:00:42]} 24. c3 {[%emt 0:00:49]} Rd3 {[%emt 0:00:02]} 25. Qb2 {[%emt 0:00:41]} Qb6+ {[%emt 0:00:27]} 26. Kh1 {[%emt 0:00:12]} Rad8 {[%emt 0:00:04]} 27. a4 {[%emt 0:00:23]} Rd2 {[%emt 0:00:35]} 28. Qc1 {[%emt 0:00:53]} Qf2 {[%emt 0:00:30]} 29. a5 {[%emt 0:00:44]} g5 {[%emt 0:00:09]} 30. Qg1 {[%emt 0:00:25]} Qxg1+ {[%emt 0:01:46]} 31. Kxg1 {[%emt 0:09:02]} g4 {[%emt 0:00:04]} 32. Bd1 {[%emt 0:01:27]} Bf8 {[%emt 0:00:24]} 33. b6 {[%emt 0:01:55]} Bc5+ {[%emt 0:00:06]} 34. Kh1 {[%emt 0:00:10]} axb6 {[%emt 0:00:17]} 35. a6 {[%emt 0:00:14]} Bc8 {[%emt 0:00:14]} 36. Bxg4 {[%emt 0:02:19]} Bxg4 {[%emt 0:00:53]} 37. a7 {[%emt 0:00:13]} f3 {[%emt 0:00:46]} 38. h3 {[%emt 0:03:55]} fxg2+ {[%emt 0:00:09]} 0-1

[Event "22nd Ruzomberok Open 2019"]
[Site "Ruzomberok"]
[Date "2019.07.06"]
[Round "8.31"]
[White "Majerova, Veronika"]
[Black "Staffen, Robert"]
[Result "1-0"]
[ECO "A48"]
[WhiteElo "1531"]
[BlackElo "1643"]
[Annotator "NA"]
[PlyCount "107"]
[EventDate "2019.06.29"]
[EventType "swiss"]
[EventCountry "SVK"]
[SourceTitle "playchess.com"]
[Source "ChessBase"]
[SourceQuality "1"]
[TimeControl "40/5400+30:1800+30"]

1. d4 {[%emt 0:00:00]} Nf6 {[%emt 0:00:00]} 2. Nf3 {[%emt 0:00:00]} g6 {[%emt 0:00:09]} 3. Bf4 {[%emt 0:00:00]} Bg7 {[%emt 0:00:11]} 4. e3 {[%emt 0:00:18]} O-O {[%emt 0:00:12]} 5. h3 {[%emt 0:00:11]} c5 {[%emt 0:01:02]} 6. c3 {[%emt 0:00:11]} d5 {[%emt 0:00:18]} 7. Nbd2 {[%emt 0:00:37]} Nc6 {[%emt 0:00:24]} 8. Be2 {[%emt 0:00:34]} b6 {[%emt 0:02:48]} 9. O-O {[%emt 0:00:19]} Bb7 {[%emt 0:01:21]} 10. Ne5 {[%emt 0:02:31]} Nd7 {[%emt 0:03:49]} 11. Ndf3 {[%emt 0:03:09]} Ndxe5 {[%emt 0:00:43]} 12. Nxe5 {[%emt 0:00:15]} Nxe5 {[%emt 0:00:26]} 13. Bxe5 {[%emt 0:01:29]} f6 {[%emt 0:03:29]} 14. Bh2 {[%emt 0:00:25]} e5 {[%emt 0:00:32]} 15. Qd2 {[%emt 0:02:58]} Rc8 {[%emt 0:02:06]} 16. Rfe1 {[%emt 0:02:43]} Re8 {[%emt 0:02:09]} 17. Rac1 {[%emt 0:02:33]} Qe7 {[%emt 0:06:46]} 18. Bf1 {[%emt 0:02:12]} Rc7 {[%emt 0:00:47]} 19. c4 {[%emt 0:02:29]} cxd4 {[%emt 0:06:49]} 20. exd4 {[%emt 0:03:38]} Rec8 {[%emt 0:17:15]} 21. b3 {[%emt 0:01:49]} Rd7 {[%emt 0:01:39]} 22. Qb2 {[%emt 0:05:03]} e4 {[%emt 0:04:14]} 23. f3 {[%emt 0:04:16]} f5 {[%emt 0:03:34]} 24. Qd2 {[%emt 0:10:03]} Kh8 {[%emt 0:11:16]} 25. fxe4 {[%emt 0:12:57]} fxe4 {[%emt 0:02:52]} 26. Be2 {[%emt 0:04:09]} dxc4 {[%emt 0:02:41]} 27. Bxc4 {[%emt 0:11:28]} Bxd4+ {[%emt 0:03:56]} 28. Kh1 {[%emt 0:00:08]} a6 {[%emt 0:03:17]} 29. Rf1 {[%emt 0:10:22]} e3 {[%emt 0:06:08]} 30. Qe2 {[%emt 0:04:21]} Bf6 {[%emt 0:06:15]} 31. Rcd1 {[%emt 0:09:13]} Rcd8 {[%emt 0:01:20]} 32. Rxd7 {[%emt 0:01:03]} Rxd7 {[%emt 0:00:34]} 33. Rd1 {[%emt 0:00:25]} Rxd1+ {[%emt 0:02:42]} 34. Qxd1 {[%emt 0:00:04]} Qe4 {[%emt 0:00:33]} 35. Qe2 {[%emt 0:00:59]} Qb1+ {[%emt 0:01:45]} 36. Qf1 {[%emt 0:01:53]} Qb2 {[%emt 0:01:19]} 37. Qe2 {[%emt 0:01:22]} Qb1+ {[%emt 0:00:58]} 38. Qf1 {[%emt 0:00:06]} Qb2 {[%emt 0:00:20]} 39. Qe2 {[%emt 0:00:06]} Qc1+ {[%emt 0:00:23]} 40. Qf1 {[%emt 0:00:20]} Qc3 {[%emt 0:00:35]} 41. Bxa6 {[%emt 0:33:12]} Bxa6 {[%emt 0:07:47]} 42. Qxa6 {[%emt 0:00:00]} Qe1+ {[%emt 0:06:03]} 43. Bg1 {[%emt 0:00:00]} Bd4 {[%emt 0:05:02]} 44. Qc8+ {[%emt 0:00:00]} Kg7 {[%emt 0:01:51]} 45. Qd7+ {[%emt 0:00:00]} Kg8 {[%emt 0:00:06]} 46. Qxd4 {[%emt 0:00:00]} e2 {[%emt 0:00:35]} 47. Qd8+ {[%emt 0:00:00]} Kf7 {[%emt 0:00:50]} 48. Qd7+ {[%emt 0:00:00]} Kf8 {[%emt 0:00:52]} 49. Qd6+ {[%emt 0:00:00]} Kf7 50. Qf4+ Ke6 {[%emt 0:02:41]} 51. Qe3+ {[%emt 0:00:00]} Kd7 {[%emt 0:00:30]} 52. Kh2 {[%emt 0:00:00]} Qd1 {[%emt 0:03:29]} 53. Bf2 {[%emt 0:00:00]} Qd5 {[%emt 0:00:28]} 54. Qxe2 1-0

[Event "22nd Ruzomberok Open 2019"]
[Site "Ruzomberok"]
[Date "2019.07.06"]
[Round "8.32"]
[White "Demko, Ladislav"]
[Black "Taragel, Marian"]
[Result "0-1"]
[ECO "C97"]
[WhiteElo "1666"]
[BlackElo "1636"]
[Annotator "NA"]
[PlyCount "111"]
[EventDate "2019.06.29"]
[EventType "swiss"]
[EventCountry "SVK"]
[SourceTitle "playchess.com"]
[Source "ChessBase"]
[SourceQuality "1"]
[TimeControl "40/5400+30:1800+30"]

1. e4 {[%emt 0:00:00]} e5 {[%emt 0:00:21]} 2. Nf3 {[%emt 0:00:16]} Nc6 {[%emt 0:00:33]} 3. Bb5 {[%emt 0:00:09]} a6 {[%emt 0:00:53]} 4. Ba4 {[%emt 0:00:40]} Nf6 {[%emt 0:00:42]} 5. O-O {[%emt 0:00:07]} Be7 {[%emt 0:00:51]} 6. Re1 {[%emt 0:00:19]} b5 {[%emt 0:01:34]} 7. Bb3 {[%emt 0:00:18]} d6 {[%emt 0:00:47]} 8. h3 {[%emt 0:00:41]} O-O {[%emt 0:00:49]} 9. c3 {[%emt 0:00:16]} Na5 {[%emt 0:00:58]} 10. Bc2 {[%emt 0:00:29]} c5 {[%emt 0:01:08]} 11. d4 {[%emt 0:00:26]} Qc7 {[%emt 0:00:48]} 12. dxe5 {[%emt 0:01:37]} dxe5 {[%emt 0:00:52]} 13. Qe2 {[%emt 0:00:23]} Bb7 {[%emt 0:04:21]} 14. Nbd2 {[%emt 0:02:20]} Rfd8 {[%emt 0:08:06]} 15. Nf1 {[%emt 0:00:22]} c4 {[%emt 0:04:15]} 16. Ng3 {[%emt 0:00:14]} Nc6 {[%emt 0:02:49]} 17. Bg5 {[%emt 0:00:19]} h6 {[%emt 0:02:18]} 18. Be3 {[%emt 0:00:53]} Rd7 {[%emt 0:02:48]} 19. Nf5 {[%emt 0:00:18]} Bf8 {[%emt 0:01:04]} 20. g4 {[%emt 0:03:38]} Ne7 {[%emt 0:03:56]} 21. g5 {[%emt 0:02:14]} hxg5 {[%emt 0:03:41]} 22. Bxg5 Nh7 {[%emt 0:06:53]} 23. Be3 {[%emt 0:04:50]} Nxf5 {[%emt 0:08:57]} 24. exf5 {[%emt 0:00:41]} Qc6 {[%emt 0:00:34]} 25. Kg2 {[%emt 0:02:30]} Rad8 {[%emt 0:04:45]} 26. Rad1 {[%emt 0:02:21]} Rxd1 {[%emt 0:02:12]} 27. Rxd1 {[%emt 0:00:08]} Rxd1 {[%emt 0:01:01]} 28. Bxd1 {[%emt 0:00:14]} Bc5 {[%emt 0:01:13]} 29. Qd2 {[%emt 0:01:06]} Bxe3 {[%emt 0:02:50]} 30. fxe3 {[%emt 0:01:03]} Qf6 {[%emt 0:07:41]} 31. Qc2 {[%emt 0:02:36]} Ng5 {[%emt 0:02:03]} 32. Qd2 {[%emt 0:07:52]} Bxf3+ {[%emt 0:03:02]} 33. Bxf3 {[%emt 0:00:15]} Nxf3 {[%emt 0:00:13]} 34. Kxf3 {[%emt 0:01:02]} Qxf5+ {[%emt 0:00:21]} 35. Kg3 {[%emt 0:00:32]} Qd3 {[%emt 0:02:07]} 36. Qf2 {[%emt 0:00:31]} Qg6+ {[%emt 0:00:56]} 37. Kh2 {[%emt 0:00:19]} f5 {[%emt 0:00:50]} 38. Qd2 {[%emt 0:00:55]} Qf6 {[%emt 0:01:13]} 39. Qd5+ {[%emt 0:00:14]} Kh7 {[%emt 0:00:31]} 40. Qf3 Qg5 41. Qg3 {[%emt 0:35:09]} Qxg3+ {[%emt 0:31:18]} 42. Kxg3 Kg6 43. Kh4 Kf6 44. Kg3 Kg5 45. h4+ {[%emt 0:06:44]} Kh5 {[%emt 0:02:17]} 46. Kh3 {[%emt 0:00:21]} f4 {[%emt 0:00:48]} 47. e4 {[%emt 0:00:24]} g5 {[%emt 0:00:55]} 48. hxg5 {[%emt 0:02:03]} Kxg5 {[%emt 0:00:29]} 49. Kg2 Kg4 50. Kf2 {[%emt 0:02:49]} f3 {[%emt 0:01:48]} 51. a3 {[%emt 0:08:29]} Kf4 {[%emt 0:00:17]} 52. Kf1 Kxe4 53. Ke1 {[%emt 0:01:21]} Ke3 {[%emt 0:00:46]} 54. Kf1 f2 55. a4 {[%emt 0:03:38]} e4 {[%emt 0:00:47] Kxf2+ Kd2 Kf3 e3 Ke4 e2 Kd5 e1=Q} 56. axb5 {Qb1} 0-1

[Event "22nd Ruzomberok Open 2019"]
[Site "Ruzomberok"]
[Date "2019.07.06"]
[Round "8.33"]
[White "Polko, Pavol"]
[Black "Petrasko, Jozef"]
[Result "1-0"]
[ECO "A00"]
[WhiteElo "1638"]
[BlackElo "1455"]
[Annotator "NA"]
[PlyCount "47"]
[EventDate "2019.06.29"]
[EventType "swiss"]
[EventCountry "SVK"]
[SourceTitle "playchess.com"]
[Source "ChessBase"]
[SourceQuality "1"]
[TimeControl "40/5400+30:1800+30"]

1. h4 {[%emt 0:00:00]} Nf6 {[%emt 0:00:16]} 2. d4 {[%emt 0:00:00]} d5 {[%emt 0:00:39]} 3. Bg5 {[%emt 0:00:00]} Bf5 {[%emt 0:01:15]} 4. Bxf6 {[%emt 0:00:46]} exf6 {[%emt 0:01:27]} 5. Nc3 {[%emt 0:00:34]} c6 {[%emt 0:00:13]} 6. e3 {[%emt 0:00:55]} Nd7 {[%emt 0:02:18]} 7. g4 {[%emt 0:00:15]} Be6 {[%emt 0:00:37]} 8. Bd3 {[%emt 0:00:49]} Be7 {[%emt 0:01:49]} 9. f4 {[%emt 0:00:06]} Nb6 {[%emt 0:01:02]} 10. f5 {[%emt 0:00:08]} Bd7 {[%emt 0:00:10]} 11. b3 {[%emt 0:00:28]} Qc7 {[%emt 0:00:25]} 12. Nge2 {[%emt 0:00:05]} Bd6 {[%emt 0:02:03]} 13. Rh3 {[%emt 0:00:30]} g6 {[%emt 0:00:16]} 14. Qd2 {[%emt 0:00:23]} a5 {[%emt 0:02:13]} 15. a4 {[%emt 0:00:48]} O-O {[%emt 0:05:14]} 16. O-O-O {[%emt 0:01:11]} c5 {[%emt 0:00:23]} 17. Nb5 {[%emt 0:00:33]} Bxb5 {[%emt 0:00:20]} 18. Bxb5 {[%emt 0:00:10]} cxd4 {[%emt 0:00:23]} 19. Nxd4 {[%emt 0:01:45]} Bb4 {[%emt 0:01:01]} 20. Qd3 {[%emt 0:00:24]} Rac8 {[%emt 0:01:24]} 21. h5 {[%emt 0:01:19]} g5 {[%emt 0:01:20]} 22. Qe2 {[%emt 0:01:18]} Qc3 {[%emt 0:00:35]} 23. Qd3 Qc5 24. Kb1 1-0

[Event "22nd Ruzomberok Open 2019"]
[Site "Ruzomberok"]
[Date "2019.07.06"]
[Round "8.34"]
[White "Hajtmansky, Milan"]
[Black "Konkol, Emil"]
[Result "1/2-1/2"]
[ECO "C44"]
[WhiteElo "1521"]
[BlackElo "1714"]
[Annotator "NA RC"]
[PlyCount "20"]
[EventDate "2019.06.29"]
[EventType "swiss"]
[EventCountry "SVK"]
[SourceTitle "playchess.com"]
[Source "ChessBase"]
[SourceQuality "1"]
[TimeControl "40/5400+30:1800+30"]

1. e4 e5 2. Nf3 Nc6 3. d3 d5 4. exd5 Qxd5 5. Nc3 Bb4 6. Bd2 Qd8 7. Be2 Nge7 8. O-O O-O 9. a3 Ba5 10. Ne4 Bxd2 1/2-1/2

[Event "22nd Ruzomberok Open 2019"]
[Site "Ruzomberok"]
[Date "2019.07.06"]
[Round "8.35"]
[White "Galbavy, Dusan"]
[Black "Berglund, Jan S."]
[Result "1-0"]
[ECO "B00"]
[WhiteElo "1735"]
[BlackElo "2013"]
[Annotator "NA"]
[PlyCount "89"]
[EventDate "2019.06.29"]
[EventType "swiss"]
[EventCountry "SVK"]
[SourceTitle "playchess.com"]
[Source "ChessBase"]
[SourceQuality "1"]
[TimeControl "40/5400+30:1800+30"]

1. e4 {[%emt 0:03:28]} b6 {[%emt 0:00:05]} 2. f4 {[%emt 0:00:13]} g6 {[%emt 0:00:29]} 3. Bc4 {[%emt 0:00:15]} Bg7 {[%emt 0:00:29]} 4. d4 {[%emt 0:00:32]} Bb7 {[%emt 0:00:26]} 5. Nc3 {[%emt 0:00:42]} c6 {[%emt 0:00:39]} 6. e5 {[%emt 0:00:26]} e6 {[%emt 0:00:38]} 7. Nf3 {[%emt 0:00:15]} b5 {[%emt 0:00:28]} 8. Bd3 {[%emt 0:00:32]} b4 {[%emt 0:00:35]} 9. Ne4 {[%emt 0:02:58]} Bf8 {[%emt 0:02:30]} 10. O-O {[%emt 0:01:11]} d5 {[%emt 0:00:31]} 11. Nfg5 {[%emt 0:01:13]} dxe4 {[%emt 0:02:58]} 12. Bxe4 {[%emt 0:00:05]} h6 {[%emt 0:03:29]} 13. Nf3 {[%emt 0:00:36]} Qe7 {[%emt 0:01:50]} 14. c3 {[%emt 0:00:35]} bxc3 {[%emt 0:03:19]} 15. bxc3 {[%emt 0:00:23]} c5 {[%emt 0:00:57]} 16. Qa4+ {[%emt 0:02:18]} Kd8 {[%emt 0:02:15]} 17. Nd2 {[%emt 0:04:26]} Qc7 {[%emt 0:02:01]} 18. Ba3 {[%emt 0:01:52]} Bxe4 {[%emt 0:01:31]} 19. Nxe4 {[%emt 0:00:13]} Qc6 {[%emt 0:00:45]} 20. Qc2 {[%emt 0:03:15]} Na6 {[%emt 0:01:52]} 21. Rfd1 {[%emt 0:01:07]} Kc7 {[%emt 0:01:25]} 22. Rab1 {[%emt 0:04:21]} cxd4 {[%emt 0:01:37]} 23. Bxf8 {[%emt 0:00:45]} Rxf8 {[%emt 0:00:22]} 24. Rxd4 {[%emt 0:00:42]} Rb8 {[%emt 0:02:42]} 25. Rxb8 {[%emt 0:03:22]} Nxb8 {[%emt 0:00:45]} 26. Nd6 {[%emt 0:03:52]} Na6 {[%emt 0:12:16]} 27. Rc4 {[%emt 0:01:46]} Nc5 {[%emt 0:00:24]} 28. Qf2 {[%emt 0:03:20]} Qb6 {[%emt 0:01:06]} 29. Rxc5+ {[%emt 0:01:18]} Kd7 {[%emt 0:00:30]} 30. h3 {[%emt 0:02:28]} Ne7 {[%emt 0:00:19]} 31. Qd4 {[%emt 0:08:17]} Nc6 {[%emt 0:02:57]} 32. Qf2 {[%emt 0:03:45]} Rf8 {[%emt 0:02:38]} 33. Ne4 {[%emt 0:01:45]} Qb1+ {[%emt 0:00:41]} 34. Kh2 {[%emt 0:00:01]} Qxe4 {[%emt 0:00:14]} 35. Qd2+ {[%emt 0:01:02]} Kc8 {[%emt 0:02:25]} 36. Qd6 {[%emt 0:01:38]} Qxf4+ {[%emt 0:05:02]} 37. Kg1 {[%emt 0:01:33]} Qe3+ {[%emt 0:01:06]} 38. Kf1 {[%emt 0:00:39]} Qf4+ {[%emt 0:01:19]} 39. Ke2 {[%emt 0:00:55]} Qe4+ {[%emt 0:00:48]} 40. Kf2 {[%emt 0:00:07]} Qc2+ {[%emt 0:01:13]} 41. Kg3 {[%emt 0:32:10]} Rd8 {[%emt 0:36:01]} 42. Rxc6+ {[%emt 0:01:15]} Kb7 {[%emt 0:00:21]} 43. Qc7+ {[%emt 0:00:21]} Ka8 {[%emt 0:00:20]} 44. Qxd8+ {[%emt 0:00:16]} Kb7 {[%emt 0:00:12]} 45. Qc8# {[%emt 0:00:12] f6} 1-0

[Event "22nd Ruzomberok Open 2019"]
[Site "Ruzomberok"]
[Date "2019.07.06"]
[Round "8.36"]
[White "Slyk, Piotr"]
[Black "Brennan, Samuel J"]
[Result "0-1"]
[ECO "C20"]
[WhiteElo "1082"]
[BlackElo "1678"]
[Annotator "NA"]
[PlyCount "34"]
[EventDate "2019.06.29"]
[EventType "swiss"]
[EventCountry "SVK"]
[SourceTitle "playchess.com"]
[Source "ChessBase"]
[SourceQuality "1"]
[TimeControl "40/5400+30:1800+30"]

1. e4 e5 2. d3 {[%emt 0:00:40]} Nf6 {[%emt 0:00:17]} 3. Be3 {[%emt 0:00:22]} d5 {[%emt 0:00:14]} 4. Bg5 {[%emt 0:00:31]} dxe4 {[%emt 0:01:31]} 5. Bxf6 {[%emt 0:00:19]} Qxf6 {[%emt 0:00:08]} 6. dxe4 {[%emt 0:00:16]} Bc5 {[%emt 0:00:11]} 7. Nf3 {[%emt 0:00:22]} O-O {[%emt 0:00:46]} 8. Qd5 {[%emt 0:00:34]} Qb6 {[%emt 0:01:32]} 9. Ke2 {[%emt 0:03:14]} Qb5+ {[%emt 0:02:20]} 10. Kd2 {[%emt 0:00:27]} Qxb2 {[%emt 0:01:26]} 11. Qxc5 {[%emt 0:00:41]} Qxa1 {[%emt 0:00:17]} 12. Nc3 {[%emt 0:00:39]} Rd8+ {[%emt 0:02:39]} 13. Ke2 {[%emt 0:03:28]} b6 {[%emt 0:02:35]} 14. Qxc7 {[%emt 0:00:13]} Ba6+ {[%emt 0:00:15]} 15. Ke3 {[%emt 0:04:15]} Qc1+ {[%emt 0:00:11]} 16. Nd2 {[%emt 0:00:08]} Qxd2+ {[%emt 0:00:20]} 17. Kf3 {[%emt 0:00:07]} Qf4# {Nb1} 0-1

[Event "22nd Ruzomberok Open 2019"]
[Site "Ruzomberok"]
[Date "2019.07.06"]
[Round "8.37"]
[White "Segeda, Milos"]
[Black "Horbal, Michal"]
[Result "0-1"]
[ECO "C42"]
[WhiteElo "1446"]
[BlackElo "1111"]
[Annotator "NA"]
[PlyCount "80"]
[EventDate "2019.06.29"]
[EventType "swiss"]
[EventCountry "SVK"]
[SourceTitle "playchess.com"]
[Source "ChessBase"]
[SourceQuality "1"]
[TimeControl "40/5400+30:1800+30"]

1. e4 {[%emt 0:00:00]} e5 {[%emt 0:00:16]} 2. Nf3 {[%emt 0:00:00]} Nf6 {[%emt 0:00:28]} 3. Bd3 {[%emt 0:03:40]} Nc6 {[%emt 0:04:18]} 4. a3 {[%emt 0:01:09]} a5 {[%emt 0:01:29]} 5. O-O {[%emt 0:00:52]} Bc5 {[%emt 0:02:15]} 6. Nc3 {[%emt 0:03:24]} O-O {[%emt 0:04:10]} 7. Re1 {[%emt 0:02:19]} d6 {[%emt 0:05:11]} 8. Nd5 {[%emt 0:04:41]} Ng4 {[%emt 0:03:44]} 9. Ne3 {[%emt 0:01:48]} Nxe3 {[%emt 0:08:01]} 10. dxe3 {[%emt 0:01:12]} f5 {[%emt 0:03:02]} 11. Bc4+ {[%emt 0:08:05]} Kh8 {[%emt 0:00:39]} 12. Bd5 {[%emt 0:00:18]} Ne7 {[%emt 0:03:26]} 13. Ng5 {[%emt 0:00:43]} Nxd5 {[%emt 0:01:06]} 14. Nxh7 {[%emt 0:00:30]} Kxh7 {[%emt 0:01:18]} 15. Qh5+ {[%emt 0:00:13]} Kg8 {[%emt 0:01:22]} 16. exd5 {[%emt 0:00:16]} Bd7 {[%emt 0:00:37]} 17. Bd2 {[%emt 0:13:20]} Qf6 {[%emt 0:04:00]} 18. b4 {[%emt 0:00:17]} axb4 {[%emt 0:01:37]} 19. Bxb4 {[%emt 0:00:24]} Bxb4 {[%emt 0:00:34]} 20. axb4 {[%emt 0:01:16]} Rxa1 {[%emt 0:00:29]} 21. Rxa1 {[%emt 0:00:20]} Qf7 {[%emt 0:00:43]} 22. Qxf7+ {[%emt 0:01:55]} Kxf7 {[%emt 0:00:15]} 23. c4 {[%emt 0:00:40]} Kg6 {[%emt 0:00:47]} 24. Ra7 {[%emt 0:00:31]} Bc8 {[%emt 0:00:31]} 25. b5 {[%emt 0:01:12]} f4 {[%emt 0:00:34]} 26. e4 {[%emt 0:03:29]} f3 {[%emt 0:00:22]} 27. g3 {[%emt 0:00:24]} c6 {[%emt 0:01:17]} 28. Ra8 {[%emt 0:00:17]} cxd5 {[%emt 0:02:51]} 29. cxd5 {[%emt 0:02:48]} b6 {[%emt 0:00:46]} 30. g4 {[%emt 0:01:08]} Kf7 {[%emt 0:01:04]} 31. h3 {[%emt 0:01:51]} Bd7 {[%emt 0:00:15]} 32. Ra7 {[%emt 0:00:44]} Ke7 {[%emt 0:00:41]} 33. Kh2 {[%emt 0:00:33]} Rf4 {[%emt 0:00:22]} 34. Kg3 {[%emt 0:00:15]} Rxe4 {[%emt 0:00:19]} 35. Kxf3 {[%emt 0:02:06]} Rd4 {[%emt 0:01:28]} 36. h4 {[%emt 0:01:10]} Rxd5 {[%emt 0:00:41]} 37. g5 {[%emt 0:05:56]} Rd3+ {[%emt 0:00:30]} 38. Ke4 {[%emt 0:01:43]} Rh3 {[%emt 0:00:12]} 39. Rb7 {[%emt 0:01:17]} Rxh4+ {[%emt 0:00:20]} 40. Kd5 {[%emt 0:00:29]} Rd4# 0-1

[Event "22nd Ruzomberok Open 2019"]
[Site "Ruzomberok"]
[Date "2019.07.07"]
[Round "9.1"]
[White "Zvarik, Martin"]
[Black "Vojtek, Vladimir"]
[Result "1/2-1/2"]
[ECO "D02"]
[WhiteElo "2308"]
[BlackElo "2313"]
[Annotator "NA"]
[PlyCount "70"]
[EventDate "2019.06.29"]
[EventType "swiss"]
[EventCountry "SVK"]
[SourceTitle "playchess.com"]
[Source "ChessBase"]
[SourceQuality "1"]
[TimeControl "40/5400+30:1800+30"]

1. d4 {[%emt 0:00:00]} d5 {[%emt 0:00:11]} 2. Nf3 {[%emt 0:00:04]} e6 {[%emt 0:00:33]} 3. Bf4 {[%emt 0:02:43]} Nf6 {[%emt 0:01:56]} 4. e3 {[%emt 0:00:31]} Nbd7 {[%emt 0:02:00]} 5. h3 {[%emt 0:02:29]} Be7 {[%emt 0:03:33]} 6. Bd3 {[%emt 0:01:24]} b6 {[%emt 0:00:14]} 7. O-O {[%emt 0:03:22]} Bb7 {[%emt 0:01:22]} 8. Nbd2 {[%emt 0:01:52]} O-O {[%emt 0:00:40]} 9. Ne5 {[%emt 0:08:37]} Ne4 {[%emt 0:07:38]} 10. Rc1 {[%emt 0:06:22]} c5 {[%emt 0:15:10]} 11. Nxd7 {[%emt 0:18:59]} Qxd7 {[%emt 0:00:44]} 12. c3 {[%emt 0:05:16]} Bc6 {[%emt 0:14:06]} 13. Qe2 {[%emt 0:08:22]} Rac8 {[%emt 0:10:45]} 14. Rfd1 {[%emt 0:01:10]} Ba4 {[%emt 0:03:31]} 15. b3 {[%emt 0:03:57]} Nxd2 {[%emt 0:04:43]} 16. Rxd2 {[%emt 0:05:39]} Bc6 {[%emt 0:17:00]} 17. dxc5 {[%emt 0:01:15]} Bxc5 {[%emt 0:01:10]} 18. Rcd1 {[%emt 0:03:40]} Qe7 {[%emt 0:01:25]} 19. c4 {[%emt 0:12:07]} Bb4 {[%emt 0:01:07]} 20. Rc2 {[%emt 0:00:28]} dxc4 {[%emt 0:02:41]} 21. Rxc4 {[%emt 0:00:56]} Bd5 {[%emt 0:02:00]} 22. Rxc8 {[%emt 0:02:42]} Rxc8 {[%emt 0:00:00]} 23. Qg4 {[%emt 0:00:39]} Rf8 {[%emt 0:04:51]} 24. e4 {[%emt 0:03:51]} Bb7 {[%emt 0:00:48]} 25. e5 {[%emt 0:00:30]} f5 {[%emt 0:01:09]} 26. exf6 {[%emt 0:02:49]} Qxf6 {[%emt 0:00:00]} 27. Be3 {[%emt 0:00:29]} Bc5 {[%emt 0:02:11]} 28. Bc4 {[%emt 0:01:53]} Bd5 {[%emt 0:00:31]} 29. Bxd5 {[%emt 0:00:42]} exd5 {[%emt 0:00:01]} 30. Rxd5 {[%emt 0:01:02]} Bxe3 {[%emt 0:00:53]} 31. fxe3 {[%emt 0:00:05]} Qf2+ {[%emt 0:00:24]} 32. Kh2 {[%emt 0:00:11]} Qxe3 {[%emt 0:00:10]} 33. Rd7 {[%emt 0:00:27]} Qe5+ {[%emt 0:00:40]} 34. Qg3 {[%emt 0:00:06]} Qxg3+ {[%emt 0:01:25]} 35. Kxg3 {[%emt 0:00:07]} a5 1/2-1/2